[Event "*** Titled Tuesday Blitz"]
[Site "Chess.com"]
[Date "2020.04.07"]
[Round "5"]
[White "ajkom197"]
[Black "Vuk2000"]
[Result "0-1"]
[WhiteElo "2317"]
[BlackElo "2638"]
[TimeControl "180+1"]
[EndTime "13:57:33 PDT"]
[Termination "Vuk2000 won on time"]

1. c4 {[%clk 0:03:00.9]} 1... e5 {[%clk 0:02:49.7]} 2. g3 {[%clk 0:03:00.3]}
2... Nc6 {[%clk 0:02:49.8]} 3. Bg2 {[%clk 0:03:00.4]} 3... g6 {[%clk 0:02:49.7]}
4. Nc3 {[%clk 0:03:00.5]} 4... Bg7 {[%clk 0:02:49.9]} 5. d3 {[%clk 0:03:01]}
5... d6 {[%clk 0:02:50.2]} 6. e4 {[%clk 0:03:01.1]} 6... Be6 {[%clk 0:02:50.2]}
7. Nge2 {[%clk 0:03:01]} 7... Qd7 {[%clk 0:02:50.2]} 8. O-O {[%clk 0:03:01]}
8... Bh3 {[%clk 0:02:50.3]} 9. Be3 {[%clk 0:02:57.3]} 9... Bxg2 {[%clk
0:02:49.7]} 10. Kxg2 {[%clk 0:02:58.2]} 10... Nge7 {[%clk 0:02:49.5]} 11. a3
{[%clk 0:02:57.7]} 11... O-O {[%clk 0:02:48.3]} 12. b4 {[%clk 0:02:57.3]} 12...
f5 {[%clk 0:02:46.7]} 13. f3 {[%clk 0:02:57.4]} 13... f4 {[%clk 0:02:44.7]} 14.
Bg1 {[%clk 0:02:51.8]} 14... fxg3 {[%clk 0:02:43.8]} 15. hxg3 {[%clk 0:02:51.4]}
15... g5 {[%clk 0:02:43.4]} 16. Nd5 {[%clk 0:02:49.2]} 16... Ng6 {[%clk
0:02:42.8]} 17. Be3 {[%clk 0:02:47.1]} 17... h6 {[%clk 0:02:36]} 18. Qd2 {[%clk
0:02:16]} 18... Rf7 {[%clk 0:02:31.5]} 19. Rh1 {[%clk 0:02:14.8]} 19... Nd8
{[%clk 0:02:30.6]} 20. Raf1 {[%clk 0:02:11]} 20... Ne6 {[%clk 0:02:30.2]} 21. d4
{[%clk 0:02:07.6]} 21... Raf8 {[%clk 0:02:22.4]} 22. c5 {[%clk 0:01:56]} 22...
c6 {[%clk 0:02:21.4]} 23. Ndc3 {[%clk 0:01:54.5]} 23... exd4 {[%clk 0:02:10.9]}
24. Nxd4 {[%clk 0:01:53.2]} 24... Ne5 {[%clk 0:02:08.9]} 25. Nxe6 {[%clk
0:01:46.5]} 25... Qxe6 {[%clk 0:02:08.4]} 26. Qxd6 {[%clk 0:01:24.6]} 26... Qb3
{[%clk 0:02:07.7]} 27. Bd4 {[%clk 0:01:10.3]} 27... Rd7 {[%clk 0:01:56.9]} 28.
Bxe5 {[%clk 0:00:58.8]} 28... Rxd6 {[%clk 0:01:55.3]} 29. Bxd6 {[%clk
0:00:59.7]} 29... Qxc3 {[%clk 0:01:51.2]} 30. Bxf8 {[%clk 0:00:59.5]} 30... Kxf8
{[%clk 0:01:51.4]} 31. Rd1 {[%clk 0:00:56.1]} 31... Qc2+ {[%clk 0:01:45.1]} 32.
Kh3 {[%clk 0:00:55.7]} 32... Qb3 {[%clk 0:01:39.6]} 33. Kg4 {[%clk 0:00:54.6]}
33... Qe6+ {[%clk 0:01:38.6]} 34. Kh5 {[%clk 0:00:53.7]} 34... g4 {[%clk
0:01:23.5]} 35. Rhf1 {[%clk 0:00:42.8]} 35... gxf3 {[%clk 0:00:55.8]} 36. Rxf3+
{[%clk 0:00:43.7]} 36... Kg8 {[%clk 0:00:55.9]} 37. Rf4 {[%clk 0:00:40.7]} 37...
Qe5+ {[%clk 0:00:51.2]} 38. Kg4 {[%clk 0:00:37.3]} 38... h5+ {[%clk 0:00:48.7]}
39. Kh3 {[%clk 0:00:33.3]} 39... Qe6+ {[%clk 0:00:46.7]} 40. Kh4 {[%clk
0:00:26.8]} 40... Kh7 {[%clk 0:00:42]} 41. Rd6 {[%clk 0:00:24.5]} 41... Qe7+
{[%clk 0:00:36.4]} 42. Kxh5 {[%clk 0:00:21.6]} 42... Be5 {[%clk 0:00:34.8]} 43.
Rh6+ {[%clk 0:00:17.6]} 43... Kg8 {[%clk 0:00:32]} 44. Rg6+ {[%clk 0:00:14.2]}
44... Kh7 {[%clk 0:00:29.1]} 45. Rh6+ {[%clk 0:00:14.4]} 45... Kg8 {[%clk
0:00:26.5]} 46. Rg6+ {[%clk 0:00:08.1]} 46... Bg7 {[%clk 0:00:17]} 47. Rfg4
{[%clk 0:00:06.6]} 47... Qf7 {[%clk 0:00:16.5]} 48. Kh4 {[%clk 0:00:05.9]} 48...
Qa2 {[%clk 0:00:11.3]} 49. Rxg7+ {[%clk 0:00:05.6]} 49... Kf8 {[%clk 0:00:11.6]}
50. Rxb7 {[%clk 0:00:03.5]} 50... Qh2+ {[%clk 0:00:09.5]} 51. Kg5 {[%clk
0:00:03.9]} 51... Qa2 {[%clk 0:00:08.4]} 52. Rf4+ {[%clk 0:00:03.6]} 52... Kg8
{[%clk 0:00:08]} 53. Rff7 {[%clk 0:00:03.9]} 53... Qe2 {[%clk 0:00:06.4]} 54. g4
{[%clk 0:00:03.8]} 54... Qxe4 {[%clk 0:00:05.5]} 55. Rfc7 {[%clk 0:00:02.9]}
55... Qe5+ {[%clk 0:00:05]} 56. Kh4 {[%clk 0:00:02.7]} 56... Qf6+ {[%clk
0:00:04.6]} 57. Kh5 {[%clk 0:00:02.8]} 57... Qe5+ {[%clk 0:00:04.1]} 58. Kg6
{[%clk 0:00:02.8]} 58... Qe6+ {[%clk 0:00:03.6]} 0-1

[Event "*** Titled Tuesday Blitz"]
[Site "Chess.com"]
[Date "2020.04.07"]
[Round "5"]
[White "annamaja"]
[Black "Vyacheslav_N"]
[Result "1/2-1/2"]
[WhiteElo "2261"]
[BlackElo "2439"]
[TimeControl "180+1"]
[EndTime "13:57:33 PDT"]
[Termination "Game drawn by repetition"]

1. e4 {[%clk 0:03:00.9]} 1... d5 {[%clk 0:03:00.9]} 2. exd5 {[%clk 0:02:59.3]}
2... Qxd5 {[%clk 0:03:01.8]} 3. Nc3 {[%clk 0:02:59.4]} 3... Qd6 {[%clk
0:03:02.7]} 4. d4 {[%clk 0:02:58.8]} 4... Nf6 {[%clk 0:03:02.1]} 5. Nf3 {[%clk
0:02:56.4]} 5... a6 {[%clk 0:02:54.3]} 6. g3 {[%clk 0:02:54.9]} 6... b5 {[%clk
0:02:52.5]} 7. Bg2 {[%clk 0:02:50.5]} 7... Bb7 {[%clk 0:02:51.4]} 8. O-O {[%clk
0:02:49.3]} 8... e6 {[%clk 0:02:48.7]} 9. Bf4 {[%clk 0:02:42.7]} 9... Qd8 {[%clk
0:02:48.3]} 10. Ne5 {[%clk 0:02:33.4]} 10... Nd5 {[%clk 0:02:25.3]} 11. Ne4
{[%clk 0:02:17.7]} 11... Nxf4 {[%clk 0:02:18.5]} 12. gxf4 {[%clk 0:02:18.6]}
12... Nd7 {[%clk 0:02:08.1]} 13. Nxf7 {[%clk 0:01:49.1]} 13... Qe7 {[%clk
0:00:45.1]} 14. Nxh8 {[%clk 0:01:44.5]} 14... O-O-O {[%clk 0:00:45.7]} 15. Qh5
{[%clk 0:01:19.6]} 15... g6 {[%clk 0:00:29.7]} 16. Qg5 {[%clk 0:00:44.6]} 16...
Qg7 {[%clk 0:00:24.8]} 17. Nc5 {[%clk 0:00:32.8]} 17... Bxg2 {[%clk 0:00:12]}
18. Kxg2 {[%clk 0:00:18.5]} 18... Nxc5 {[%clk 0:00:10.7]} 19. dxc5 {[%clk
0:00:16.7]} 19... Qxh8 {[%clk 0:00:10.7]} 20. Rad1 {[%clk 0:00:15.5]} 20... Re8
{[%clk 0:00:11.1]} 21. c6 {[%clk 0:00:13]} 21... Bd6 {[%clk 0:00:10]} 22. Rfe1
{[%clk 0:00:10.2]} 22... Qf8 {[%clk 0:00:09.8]} 23. Re4 {[%clk 0:00:10]} 23...
Qf7 {[%clk 0:00:08.4]} 24. a4 {[%clk 0:00:09.9]} 24... b4 {[%clk 0:00:07.7]} 25.
Qa5 {[%clk 0:00:08.3]} 25... Kd8 {[%clk 0:00:06.8]} 26. Qxa6 {[%clk 0:00:05.9]}
26... Qf5 {[%clk 0:00:07.4]} 27. Qc4 {[%clk 0:00:04.1]} 27... Ke7 {[%clk
0:00:07.2]} 28. Rde1 {[%clk 0:00:02.4]} 28... Qg4+ {[%clk 0:00:04.9]} 29. Kf1
{[%clk 0:00:01.9]} 29... Qh3+ {[%clk 0:00:03.8]} 30. Ke2 {[%clk 0:00:01.4]}
30... Kf7 {[%clk 0:00:03.9]} 31. Re3 {[%clk 0:00:01.8]} 31... Qg4+ {[%clk
0:00:03.9]} 32. Kd2 {[%clk 0:00:02.4]} 32... Bxf4 {[%clk 0:00:03.9]} 33. Qe2
{[%clk 0:00:02.6]} 33... Bxe3+ {[%clk 0:00:04.7]} 34. fxe3 {[%clk 0:00:02.5]}
34... Rd8+ {[%clk 0:00:05.6]} 35. Kc1 {[%clk 0:00:03.1]} 35... Qxe2 {[%clk
0:00:06]} 36. Rxe2 {[%clk 0:00:04]} 36... Rd6 {[%clk 0:00:06.8]} 37. Rf2+ {[%clk
0:00:04.9]} 37... Ke7 {[%clk 0:00:07.3]} 38. e4 {[%clk 0:00:05.8]} 38... Rxc6
{[%clk 0:00:08.2]} 39. e5 {[%clk 0:00:06]} 39... Rc5 {[%clk 0:00:08.8]} 40. Rf4
{[%clk 0:00:06.4]} 40... Ra5 {[%clk 0:00:09.4]} 41. Rxb4 {[%clk 0:00:06.8]}
41... Rxe5 {[%clk 0:00:10]} 42. Rc4 {[%clk 0:00:07.4]} 42... Kf6 {[%clk
0:00:10.4]} 43. b4 {[%clk 0:00:08]} 43... h5 {[%clk 0:00:11.3]} 44. h4 {[%clk
0:00:08.1]} 44... g5 {[%clk 0:00:12.1]} 45. hxg5+ {[%clk 0:00:07.7]} 45... Rxg5
{[%clk 0:00:13]} 46. a5 {[%clk 0:00:08.6]} 46... Rg4 {[%clk 0:00:12]} 47. Rc5
{[%clk 0:00:06.7]} 47... h4 {[%clk 0:00:11.9]} 48. c3 {[%clk 0:00:05.6]} 48...
Kg6 {[%clk 0:00:12.2]} 49. a6 {[%clk 0:00:05.4]} 49... h3 {[%clk 0:00:12.7]} 50.
a7 {[%clk 0:00:03.1]} 50... Rg1+ {[%clk 0:00:10.2]} 51. Kb2 {[%clk 0:00:02.8]}
51... h2 {[%clk 0:00:10.8]} 52. a8=Q {[%clk 0:00:02.8]} 52... h1=Q {[%clk
0:00:11.7]} 53. Qg8+ {[%clk 0:00:03]} 53... Kf6 {[%clk 0:00:11]} 54. Qf8+ {[%clk
0:00:03.4]} 54... Kg6 {[%clk 0:00:11.3]} 55. Qg8+ {[%clk 0:00:03.8]} 55... Kf6
{[%clk 0:00:11.8]} 56. Qf8+ {[%clk 0:00:04.3]} 56... Kg6 {[%clk 0:00:12.4]} 57.
Qe8+ {[%clk 0:00:04.4]} 57... Kf6 {[%clk 0:00:10.6]} 58. Qd8+ {[%clk 0:00:04.7]}
58... Kg6 {[%clk 0:00:10.1]} 59. Qd3+ {[%clk 0:00:05.2]} 59... Kf6 {[%clk
0:00:06.8]} 60. Qd4+ {[%clk 0:00:05.7]} 60... Kg6 {[%clk 0:00:07.2]} 61. Qd3+
{[%clk 0:00:06.3]} 61... Kf6 {[%clk 0:00:07.6]} 62. Qd4+ {[%clk 0:00:06.8]}
62... Kg6 {[%clk 0:00:08.1]} 63. Qd3+ {[%clk 0:00:05.6]} 1/2-1/2

[Event "*** Titled Tuesday Blitz"]
[Site "Chess.com"]
[Date "2020.04.07"]
[Round "5"]
[White "KuzubovYuriy"]
[Black "Anton_Demchenko"]
[Result "1/2-1/2"]
[WhiteElo "2821"]
[BlackElo "2961"]
[TimeControl "180+1"]
[EndTime "13:57:34 PDT"]
[Termination "Game drawn by stalemate"]

1. e4 {[%clk 0:03:00.9]} 1... e5 {[%clk 0:02:23.3]} 2. Nf3 {[%clk 0:02:57.9]}
2... Nc6 {[%clk 0:02:23.5]} 3. Bb5 {[%clk 0:02:57.7]} 3... a6 {[%clk 0:02:24]}
4. Bxc6 {[%clk 0:02:56]} 4... dxc6 {[%clk 0:02:24.3]} 5. d3 {[%clk 0:02:55.5]}
5... Bd6 {[%clk 0:02:21.7]} 6. Nbd2 {[%clk 0:02:52.6]} 6... c5 {[%clk
0:02:11.6]} 7. Nc4 {[%clk 0:02:51]} 7... f6 {[%clk 0:02:09.2]} 8. Nh4 {[%clk
0:02:45.9]} 8... Ne7 {[%clk 0:02:08.2]} 9. Qh5+ {[%clk 0:02:41.9]} 9... g6
{[%clk 0:01:47.4]} 10. Qh6 {[%clk 0:02:38]} 10... Kf7 {[%clk 0:01:47.6]} 11. Qd2
{[%clk 0:02:21.3]} 11... Be6 {[%clk 0:01:39.6]} 12. g3 {[%clk 0:02:09]} 12...
Nc6 {[%clk 0:01:21.7]} 13. c3 {[%clk 0:01:50.7]} 13... Be7 {[%clk 0:01:11.3]}
14. Qe2 {[%clk 0:01:31.8]} 14... Qd7 {[%clk 0:01:09.6]} 15. f4 {[%clk 0:01:30]}
15... exf4 {[%clk 0:01:03.2]} 16. gxf4 {[%clk 0:01:17.2]} 16... Bg4 {[%clk
0:00:47.2]} 17. Qc2 {[%clk 0:00:42.6]} 17... Rad8 {[%clk 0:00:42.2]} 18. Ne3
{[%clk 0:00:25]} 18... f5 {[%clk 0:00:42.6]} 19. Nhg2 {[%clk 0:00:19.3]} 19...
Qxd3 {[%clk 0:00:32.1]} 20. Qxd3 {[%clk 0:00:19]} 20... Rxd3 {[%clk 0:00:32.2]}
21. Nxg4 {[%clk 0:00:17.8]} 21... fxg4 {[%clk 0:00:31.9]} 22. Ke2 {[%clk
0:00:16.9]} 22... Rh3 {[%clk 0:00:30.3]} 23. Be3 {[%clk 0:00:15.6]} 23... Re8
{[%clk 0:00:30.1]} 24. Rad1 {[%clk 0:00:10.6]} 24... Rd8 {[%clk 0:00:13.4]} 25.
Rxd8 {[%clk 0:00:08.5]} 25... Nxd8 {[%clk 0:00:14.3]} 26. Bf2 {[%clk 0:00:06.7]}
26... Ne6 {[%clk 0:00:13.8]} 27. Bg3 {[%clk 0:00:05.5]} 27... h5 {[%clk
0:00:12.6]} 28. f5 {[%clk 0:00:05.9]} 28... Ng5 {[%clk 0:00:06.2]} 29. Nf4
{[%clk 0:00:05.3]} 29... Nxe4 {[%clk 0:00:05.3]} 30. fxg6+ {[%clk 0:00:05.1]}
30... Kg7 {[%clk 0:00:04.7]} 31. Nxh3 {[%clk 0:00:05.6]} 31... gxh3 {[%clk
0:00:04.6]} 32. Bxc7 {[%clk 0:00:05.6]} 32... Kxg6 {[%clk 0:00:04.7]} 33. Ke3
{[%clk 0:00:05.7]} 33... Nf6 {[%clk 0:00:03.6]} 34. Be5 {[%clk 0:00:04.3]} 34...
Ng4+ {[%clk 0:00:03.5]} 35. Kf4 {[%clk 0:00:04]} 35... Bg5+ {[%clk 0:00:03]} 36.
Kg3 {[%clk 0:00:03.6]} 36... Nxe5 {[%clk 0:00:03]} 37. Rd1 {[%clk 0:00:03.4]}
37... b5 {[%clk 0:00:02.9]} 38. Rd5 {[%clk 0:00:02.7]} 38... Nc4 {[%clk
0:00:03.1]} 39. Rxc5 {[%clk 0:00:02.8]} 39... Nxb2 {[%clk 0:00:02.9]} 40. Rc6+
{[%clk 0:00:03.2]} 40... Kf5 {[%clk 0:00:03.5]} 41. Rxa6 {[%clk 0:00:03.8]}
41... Nd1 {[%clk 0:00:03.9]} 42. Kxh3 {[%clk 0:00:03.1]} 42... Nxc3 {[%clk
0:00:04]} 43. Ra8 {[%clk 0:00:03.4]} 43... Bf6 {[%clk 0:00:04.1]} 44. Kg2 {[%clk
0:00:02.8]} 44... Ke6 {[%clk 0:00:03.6]} 45. Kf3 {[%clk 0:00:02.6]} 45... Kf5
{[%clk 0:00:03.3]} 46. Ra6 {[%clk 0:00:02.1]} 46... Be5 {[%clk 0:00:02.9]} 47.
Rb6 {[%clk 0:00:01.5]} 47... Bd4 {[%clk 0:00:01.9]} 48. Rb7 {[%clk 0:00:01.3]}
48... Be5 {[%clk 0:00:02.1]} 49. h3 {[%clk 0:00:01.7]} 49... Nxa2 {[%clk
0:00:02.1]} 50. Rxb5 {[%clk 0:00:02]} 50... Nc3 {[%clk 0:00:02.6]} 51. Rb7
{[%clk 0:00:02.5]} 51... Nd5 {[%clk 0:00:02.9]} 52. Kg2 {[%clk 0:00:02.9]} 52...
Nf4+ {[%clk 0:00:03.2]} 53. Kg3 {[%clk 0:00:03.3]} 53... Ng6+ {[%clk 0:00:03.3]}
54. Kg2 {[%clk 0:00:03.8]} 54... Nh4+ {[%clk 0:00:03.8]} 55. Kh1 {[%clk
0:00:03.6]} 55... Kf4 {[%clk 0:00:03.6]} 56. Rb4+ {[%clk 0:00:03.8]} 56... Kg5
{[%clk 0:00:03.6]} 57. Rxh4 {[%clk 0:00:04.3]} 57... Kxh4 {[%clk 0:00:03.7]} 58.
Kg2 {[%clk 0:00:05.2]} 58... Bf4 {[%clk 0:00:04]} 59. Kh1 {[%clk 0:00:06.1]}
59... Kxh3 {[%clk 0:00:03.9]} 60. Kg1 {[%clk 0:00:07]} 60... Kg3 {[%clk
0:00:04.4]} 61. Kh1 {[%clk 0:00:07.9]} 61... Be3 {[%clk 0:00:04.8]} 1/2-1/2

[Event "*** Titled Tuesday Blitz"]
[Site "Chess.com"]
[Date "2020.04.07"]
[Round "5"]
[White "Dare-Dare"]
[Black "VALPARAISO37"]
[Result "1-0"]
[WhiteElo "2160"]
[BlackElo "2314"]
[TimeControl "180+1"]
[EndTime "13:57:35 PDT"]
[Termination "Dare-Dare won by checkmate"]

1. Nf3 {[%clk 0:03:00.9]} 1... d5 {[%clk 0:02:59.1]} 2. c4 {[%clk 0:03:01.8]}
2... e6 {[%clk 0:02:57.9]} 3. e3 {[%clk 0:03:02.1]} 3... Nf6 {[%clk 0:02:55.4]}
4. Nc3 {[%clk 0:03:01.8]} 4... a6 {[%clk 0:02:54.9]} 5. b3 {[%clk 0:03:02]} 5...
b6 {[%clk 0:02:54.7]} 6. Bb2 {[%clk 0:03:02.2]} 6... Bb7 {[%clk 0:02:55.1]} 7.
d4 {[%clk 0:03:02.5]} 7... Nbd7 {[%clk 0:02:53.4]} 8. Bd3 {[%clk 0:03:02.7]}
8... Bd6 {[%clk 0:02:53]} 9. O-O {[%clk 0:03:02.7]} 9... O-O {[%clk 0:02:50.8]}
10. Rc1 {[%clk 0:03:02.4]} 10... Re8 {[%clk 0:02:49.5]} 11. Na4 {[%clk
0:02:58.9]} 11... c5 {[%clk 0:02:45.2]} 12. Qe2 {[%clk 0:02:31.4]} 12... dxc4
{[%clk 0:02:42.2]} 13. bxc4 {[%clk 0:02:30.1]} 13... Ne4 {[%clk 0:02:37.9]} 14.
Nc3 {[%clk 0:02:09.4]} 14... f5 {[%clk 0:02:35.8]} 15. Nd2 {[%clk 0:01:58.5]}
15... Qh4 {[%clk 0:02:31.9]} 16. g3 {[%clk 0:01:56.7]} 16... Ng5 {[%clk
0:02:23.5]} 17. d5 {[%clk 0:01:32.8]} 17... Qh3 {[%clk 0:02:12]} 18. f4 {[%clk
0:01:29.9]} 18... Nf7 {[%clk 0:01:52]} 19. e4 {[%clk 0:01:15.5]} 19... fxe4
{[%clk 0:01:50.3]} 20. Ndxe4 {[%clk 0:01:14]} 20... exd5 {[%clk 0:01:49.4]} 21.
Nxd5 {[%clk 0:01:13.6]} 21... b5 {[%clk 0:01:27.7]} 22. Rce1 {[%clk 0:00:30.1]}
22... h6 {[%clk 0:00:37.1]} 23. Qc2 {[%clk 0:00:24.4]} 23... Bxd5 {[%clk
0:00:34.5]} 24. cxd5 {[%clk 0:00:24.2]} 24... c4 {[%clk 0:00:29.3]} 25. Qc3
{[%clk 0:00:23.2]} 25... Bf8 {[%clk 0:00:24.9]} 26. Bb1 {[%clk 0:00:20.5]} 26...
Qg4 {[%clk 0:00:20]} 27. Qf3 {[%clk 0:00:20]} 27... Qxf3 {[%clk 0:00:19.9]} 28.
Rxf3 {[%clk 0:00:20.9]} 28... Nc5 {[%clk 0:00:18.6]} 29. Rfe3 {[%clk 0:00:18.7]}
29... Na4 {[%clk 0:00:17.9]} 30. Bd4 {[%clk 0:00:18]} 30... Kh8 {[%clk
0:00:16.3]} 31. Kg2 {[%clk 0:00:16.7]} 31... Nd8 {[%clk 0:00:15.4]} 32. Nc3
{[%clk 0:00:16]} 32... Rxe3 {[%clk 0:00:14.3]} 33. Rxe3 {[%clk 0:00:16.3]} 33...
Nxc3 {[%clk 0:00:14.3]} 34. Bxc3 {[%clk 0:00:17.2]} 34... Nb7 {[%clk 0:00:14.7]}
35. Re6 {[%clk 0:00:15.6]} 35... Nc5 {[%clk 0:00:14.8]} 36. Rc6 {[%clk
0:00:14.4]} 36... Kg8 {[%clk 0:00:14.2]} 37. Kf3 {[%clk 0:00:14.3]} 37... Nd3
{[%clk 0:00:13.5]} 38. Bxd3 {[%clk 0:00:13.6]} 38... cxd3 {[%clk 0:00:13.9]} 39.
Ke3 {[%clk 0:00:14.1]} 39... Rd8 {[%clk 0:00:14]} 40. Kd4 {[%clk 0:00:11.7]}
40... d2 {[%clk 0:00:11.4]} 41. Bxd2 {[%clk 0:00:11.6]} 41... Be7 {[%clk
0:00:12.1]} 42. Ke4 {[%clk 0:00:11.3]} 42... b4 {[%clk 0:00:11.5]} 43. Rxa6
{[%clk 0:00:10.7]} 43... Bd6 {[%clk 0:00:10.7]} 44. Rb6 {[%clk 0:00:10]} 44...
Re8+ {[%clk 0:00:09.6]} 45. Kd3 {[%clk 0:00:09.9]} 45... Bf8 {[%clk 0:00:07.7]}
46. Bxb4 {[%clk 0:00:09.7]} 46... Ra8 {[%clk 0:00:07.4]} 47. Bxf8 {[%clk
0:00:09]} 47... Kxf8 {[%clk 0:00:07.7]} 48. Rb2 {[%clk 0:00:09.2]} 48... Ra4
{[%clk 0:00:07.3]} 49. Rd2 {[%clk 0:00:09.1]} 49... Ke7 {[%clk 0:00:07.7]} 50.
Kc3 {[%clk 0:00:09.6]} 50... Kd6 {[%clk 0:00:08.1]} 51. Kb3 {[%clk 0:00:10.2]}
51... Ra8 {[%clk 0:00:07.5]} 52. Kc4 {[%clk 0:00:09.2]} 52... Ra4+ {[%clk
0:00:07.3]} 53. Kb3 {[%clk 0:00:08.7]} 53... Ra8 {[%clk 0:00:07.2]} 54. a4
{[%clk 0:00:09.6]} 54... Rb8+ {[%clk 0:00:07.3]} 55. Kc4 {[%clk 0:00:09.7]}
55... Rc8+ {[%clk 0:00:06.7]} 56. Kd4 {[%clk 0:00:09.6]} 56... Ra8 {[%clk
0:00:06.7]} 57. Ra2 {[%clk 0:00:09.3]} 57... Ra5 {[%clk 0:00:07.2]} 58. Ke4
{[%clk 0:00:09.2]} 58... Rxd5 {[%clk 0:00:06.9]} 59. a5 {[%clk 0:00:09.9]} 59...
Rc5 {[%clk 0:00:07.4]} 60. a6 {[%clk 0:00:10]} 60... Rc8 {[%clk 0:00:07.5]} 61.
a7 {[%clk 0:00:10.6]} 61... Ra8 {[%clk 0:00:08]} 62. Kf5 {[%clk 0:00:10.9]}
62... Ke7 {[%clk 0:00:07.7]} 63. Kg6 {[%clk 0:00:11.3]} 63... Kf8 {[%clk
0:00:08.2]} 64. g4 {[%clk 0:00:11.3]} 64... Kg8 {[%clk 0:00:08.1]} 65. Ra6
{[%clk 0:00:11.2]} 65... Kf8 {[%clk 0:00:08]} 66. h4 {[%clk 0:00:11.4]} 66...
Kg8 {[%clk 0:00:07.8]} 67. Rb6 {[%clk 0:00:11.9]} 67... Rxa7 {[%clk 0:00:05]}
68. Rb8# {[%clk 0:00:12]} 1-0

[Event "*** Titled Tuesday Blitz"]
[Site "Chess.com"]
[Date "2020.04.07"]
[Round "5"]
[White "Angel_Hranitel_37"]
[Black "josiwales"]
[Result "1-0"]
[WhiteElo "2352"]
[BlackElo "2510"]
[TimeControl "180+1"]
[EndTime "13:57:36 PDT"]
[Termination "Angel_Hranitel_37 won on time"]

1. d4 {[%clk 0:02:05.4]} 1... d5 {[%clk 0:02:58.2]} 2. c4 {[%clk 0:02:05.3]}
2... c6 {[%clk 0:02:58.7]} 3. cxd5 {[%clk 0:02:05.2]} 3... cxd5 {[%clk
0:02:59.6]} 4. Bg5 {[%clk 0:02:04.4]} 4... Nc6 {[%clk 0:02:59.3]} 5. Nc3 {[%clk
0:02:04.1]} 5... Nf6 {[%clk 0:03:00]} 6. Bxf6 {[%clk 0:02:04.1]} 6... exf6
{[%clk 0:03:00.9]} 7. e3 {[%clk 0:02:01.3]} 7... Bb4 {[%clk 0:02:59.9]} 8. Qb3
{[%clk 0:02:00.1]} 8... Be6 {[%clk 0:02:54.3]} 9. Ne2 {[%clk 0:01:59]} 9... O-O
{[%clk 0:02:53.3]} 10. g3 {[%clk 0:01:59.2]} 10... Qd7 {[%clk 0:02:51.2]} 11.
Bg2 {[%clk 0:01:59.3]} 11... Rac8 {[%clk 0:02:48.7]} 12. O-O {[%clk 0:01:58.6]}
12... Bd6 {[%clk 0:02:44.6]} 13. Bxd5 {[%clk 0:01:39.4]} 13... Bh3 {[%clk
0:02:35.6]} 14. Bg2 {[%clk 0:01:34]} 14... Na5 {[%clk 0:02:32.8]} 15. Qb5 {[%clk
0:01:23.3]} 15... Nc4 {[%clk 0:02:12]} 16. Qxd7 {[%clk 0:00:40.4]} 16... Bxd7
{[%clk 0:02:12.9]} 17. b3 {[%clk 0:00:39.8]} 17... Na3 {[%clk 0:02:12.3]} 18.
Bxb7 {[%clk 0:00:38.3]} 18... Rc7 {[%clk 0:02:11.2]} 19. Be4 {[%clk 0:00:36.1]}
19... Rfc8 {[%clk 0:01:58.1]} 20. Nd5 {[%clk 0:00:36.3]} 20... Bc6 {[%clk
0:01:41.1]} 21. Rac1 {[%clk 0:00:16.9]} 21... Bxd5 {[%clk 0:01:30.6]} 22. Bxd5
{[%clk 0:00:17.8]} 22... Rc2 {[%clk 0:01:21.3]} 23. Be4 {[%clk 0:00:15.6]} 23...
R2c7 {[%clk 0:01:14.6]} 24. Rxc7 {[%clk 0:00:15.4]} 24... Rxc7 {[%clk
0:01:13.1]} 25. Rc1 {[%clk 0:00:16.3]} 25... g6 {[%clk 0:01:11.2]} 26. Bd3
{[%clk 0:00:15.9]} 26... f5 {[%clk 0:01:06.6]} 27. Rxc7 {[%clk 0:00:15.9]} 27...
Bxc7 {[%clk 0:01:07.5]} 28. Nc3 {[%clk 0:00:16.5]} 28... Kf8 {[%clk 0:01:07]}
29. Kf1 {[%clk 0:00:16.8]} 29... Ba5 {[%clk 0:01:05.6]} 30. Nd5 {[%clk
0:00:14.2]} 30... Ke8 {[%clk 0:00:58.4]} 31. Ke2 {[%clk 0:00:14.4]} 31... Kd7
{[%clk 0:00:58.6]} 32. Nf6+ {[%clk 0:00:14.7]} 32... Ke6 {[%clk 0:00:58.9]} 33.
Nxh7 {[%clk 0:00:15.1]} 33... Bd8 {[%clk 0:00:58.9]} 34. h4 {[%clk 0:00:14.6]}
34... f6 {[%clk 0:00:56.1]} 35. h5 {[%clk 0:00:14]} 35... gxh5 {[%clk
0:00:55.3]} 36. Kd1 {[%clk 0:00:12.9]} 36... Be7 {[%clk 0:00:50.9]} 37. Kc1
{[%clk 0:00:11.4]} 37... Bd6 {[%clk 0:00:41.7]} 38. Kb2 {[%clk 0:00:11.4]} 38...
a6 {[%clk 0:00:35.9]} 39. Bxa6 {[%clk 0:00:10]} 39... Kf7 {[%clk 0:00:36.3]} 40.
Be2 {[%clk 0:00:04.7]} 40... Kg6 {[%clk 0:00:36.2]} 41. Nxf6 {[%clk 0:00:04.9]}
41... Kxf6 {[%clk 0:00:34.3]} 42. Bxh5 {[%clk 0:00:05.4]} 42... Nb5 {[%clk
0:00:34.8]} 43. Be2 {[%clk 0:00:04.9]} 43... Ba3+ {[%clk 0:00:33.4]} 44. Kc2
{[%clk 0:00:04.6]} 44... Nd6 {[%clk 0:00:34.3]} 45. Bd3 {[%clk 0:00:02.8]} 45...
Ke6 {[%clk 0:00:33.6]} 46. f3 {[%clk 0:00:03.1]} 46... Kd5 {[%clk 0:00:31.1]}
47. g4 {[%clk 0:00:03.6]} 47... fxg4 {[%clk 0:00:26.1]} 48. fxg4 {[%clk
0:00:04.5]} 48... Nf7 {[%clk 0:00:27]} 49. Bf5 {[%clk 0:00:04]} 49... Ng5 {[%clk
0:00:26.5]} 50. Kc3 {[%clk 0:00:04.6]} 50... Bc1 {[%clk 0:00:23.4]} 51. e4+
{[%clk 0:00:02.4]} 51... Kd6 {[%clk 0:00:20.3]} 52. b4 {[%clk 0:00:01.9]} 52...
Be3 {[%clk 0:00:15.4]} 53. a4 {[%clk 0:00:02.8]} 53... Nf3 {[%clk 0:00:15.6]}
54. Kc4 {[%clk 0:00:03.1]} 54... Bxd4 {[%clk 0:00:12.7]} 55. b5 {[%clk
0:00:03.1]} 55... Bb6 {[%clk 0:00:12.3]} 56. Kb4 {[%clk 0:00:03.2]} 56... Ne5
{[%clk 0:00:09.6]} 57. a5 {[%clk 0:00:03.2]} 57... Bc5+ {[%clk 0:00:10.1]} 58.
Ka4 {[%clk 0:00:03.4]} 58... Nc4 {[%clk 0:00:09.2]} 59. g5 {[%clk 0:00:03.7]}
59... Ne5 {[%clk 0:00:07.2]} 60. g6 {[%clk 0:00:03.9]} 60... Bd4 {[%clk
0:00:03.3]} 61. b6 {[%clk 0:00:03.7]} 61... Nc6 {[%clk 0:00:01.7]} 62. Kb5
{[%clk 0:00:03.6]} 1-0